fUST/lending_fUST_20250926
["ID","MTS","AMOUNT","RATE_DAILY","PERIOD"]
[387702986,1758816063296,600.0,0.000197,20]
[387702987,1758816080838,600.0,0.000197,20]
[387702988,1758816119555,600.0,0.000197,20]
[387702993,1758816140442,-317.33995812,0.00019251,2]
[387702994,1758816140505,-1200.0,0.00019314,2]
[387702995,1758816140571,-500.0,0.00019315,2]
[387702996,1758816140634,-500.0,0.00019315,2]
[387702997,1758816140699,-500.0,0.00019315,2]
[387702998,1758816140766,-500.0,0.00019315,2]
[387702999,1758816140832,-485.30635824,0.00019315,2]
[387703000,1758816140898,-500.0,0.00019315,2]
[387703001,1758816140963,-494.71736728,0.00019315,2]
[387703002,1758816141580,-5.28263272,0.00019314,2]
[387703003,1758816150249,-1194.71736728,0.00019314,2]
[387703004,1758816150319,-5.28263272,0.00019315,2]
[387703005,1758816150397,-368.54300784,0.00019315,2]
[387703006,1758816150462,-388.09193015,0.00019315,2]
[387703007,1758816150528,-495.44199941,0.00019315,2]
[387703008,1758816150593,-514.44085985,0.00019315,2]
[387703009,1758816150660,-370.31111499,0.00019315,2]
[387703010,1758816150728,-480.0,0.00019315,2]
[387703011,1758816150797,-500.0,0.00019315,2]
[387703012,1758816150870,-482.5318543,0.00019315,2]
[387703013,1758816151575,-401.28846692,0.00019315,2]
[387703014,1758816154059,-58.71153308,0.00019315,2]
[387703015,1758816154251,-480.0,0.00019315,2]
[387703016,1758816154319,-623.85467772,0.00019315,2]
[387703017,1758816154389,-480.0,0.00019315,2]
[387703018,1758816154457,-480.0,0.00019315,2]
[387703019,1758816154523,-458.27722924,0.00019315,2]
[387703020,1758816154591,-480.0,0.00019315,2]
[387703021,1758816154658,-480.0,0.00019315,2]
[387703022,1758816154724,-480.0,0.00019315,2]
[387703023,1758816154792,-480.0,0.00019315,2]
[387703024,1758816154857,-480.0,0.00019315,2]
[387703025,1758816155708,-38.32311992,0.00019315,2]
[387703026,1758816156918,600.0,0.000197,20]
[387703027,1758816165423,-441.67688008,0.00019315,2]
[387703028,1758816165498,-480.0,0.00019315,2]
[387703029,1758816165575,-480.0,0.00019315,2]
[387703030,1758816165650,-480.0,0.00019315,2]
[387703031,1758816165723,-480.0,0.00019315,2]
[387703032,1758816165800,-480.0,0.00019315,2]
[387703033,1758816165887,-480.0,0.00019315,2]
[387703034,1758816165975,-480.0,0.00019315,2]
[387703035,1758816166057,-480.0,0.00019315,2]
[387703036,1758816166131,-480.0,0.00019315,2]
[387703037,1758816166203,-150.0,0.00019315,2]
[387703038,1758816167015,-176.65623984,0.00019315,2]
[387703040,1758816194874,600.0,0.000197,20]
[387703041,1758816230760,600.0,0.00019699,20]
[387703042,1758816235621,-500.0,0.00019314,2]
[387703043,1758816235689,-500.0,0.00019314,2]
[387703044,1758816235757,-203.67322605,0.00019314,2]
[387703045,1758816235828,-500.0,0.00019314,2]
[387703046,1758816235896,-500.0,0.00019314,2]
[387703047,1758816235968,-500.0,0.00019314,2]
[387703048,1758816236038,-500.0,0.00019314,2]
[387703049,1758816236107,-500.0,0.00019314,2]
[387703050,1758816236183,-560.58923575,0.00019314,2]
[387703051,1758816236253,-500.0,0.00019314,2]
[387703052,1758816236901,-471.4850764,0.00019314,2]
[387703054,1758816245410,-300.0,0.00019313,2]
[387703055,1758816245475,-480.0,0.00019314,2]
[387703056,1758816245540,-303.34376016,0.00019315,2]
[387703057,1758816245604,-480.0,0.00019315,2]
[387703058,1758816245667,-480.0,0.00019315,2]
[387703059,1758816245732,-480.0,0.00019315,2]
[387703060,1758816245795,-480.0,0.00019315,2]
[387703061,1758816245863,-480.0,0.00019315,2]
[387703062,1758816245931,-480.0,0.00019315,2]
[387703063,1758816245996,-480.0,0.00019315,2]
[387703064,1758816246065,-480.0,0.00019315,2]
[387703065,1758816246320,-495.36510968,0.00019315,2]
[387703066,1758816246385,-480.0,0.00019315,2]
[387703067,1758816246449,-480.0,0.00019315,2]
[387703068,1758816246512,-480.0,0.00019315,2]
[387703069,1758816246577,-480.0,0.00019315,2]
[387703070,1758816246646,-480.0,0.00019315,2]
[387703071,1758816246710,-480.0,0.00019315,2]
[387703072,1758816246775,-531.46005873,0.00019315,2]
[387703073,1758816246838,-480.0,0.00019315,2]
[387703074,1758816246906,-480.0,0.00019315,2]
[387703075,1758816248024,-189.41742873,0.00019315,2]
[387703076,1758816248076,-266.35966318,0.00019315,2]
[387703077,1758816255166,-24.22290809,0.00019315,2]
[387703078,1758816255236,-480.0,0.00019315,2]
[387703079,1758816255305,-480.0,0.00019315,2]
[387703080,1758816255377,-480.0,0.00019315,2]
[387703081,1758816255446,-241.70668548,0.00019315,2]
[387703082,1758816255510,-484.36595145,0.00019315,2]
[387703083,1758816255575,-480.0,0.00019315,2]
[387703084,1758816255640,-480.0,0.00019315,2]
[387703085,1758816255709,-480.0,0.00019315,2]
[387703086,1758816255774,-480.0,0.00019315,2]
[387703087,1758816255840,-480.0,0.00019315,2]
[387703088,1758816255907,-339.41890996,0.00019315,2]
[387703089,1758816256684,-140.58109004,0.00019315,2]
[387703090,1758816265683,600.0,0.000197,20]
[387703091,1758816295696,-480.0,0.00019314,2]
[387703092,1758816295767,-480.0,0.00019315,2]
[387703093,1758816295836,-480.0,0.00019315,2]
[387703094,1758816295905,-480.0,0.00019315,2]
[387703095,1758816295990,-480.0,0.00019315,2]
[387703096,1758816296080,-480.0,0.00019315,2]
[387703097,1758816296156,-380.66754765,0.00019315,2]
[387703098,1758816296229,-464.29289837,0.00019315,2]
[387703099,1758816296300,-480.0,0.00019315,2]
[387703100,1758816296369,-480.0,0.00019315,2]
[387703101,1758816296448,-150.08910796,0.00019315,2]
[387703102,1758816296889,-329.91089204,0.00019315,2]
[387703103,1758816296959,-480.0,0.00019315,2]
[387703104,1758816297033,-480.0,0.00019315,2]
[387703105,1758816297102,-480.0,0.00019315,2]
[387703106,1758816297170,-480.0,0.00019315,2]
[387703107,1758816297239,-480.0,0.00019315,2]
[387703108,1758816297303,-480.0,0.00019315,2]
[387703109,1758816297368,-608.48,0.00019315,2]
[387703110,1758816297433,-480.0,0.00019315,2]
[387703111,1758816297498,-205.78821592,0.00019315,2]
[387703112,1758816298404,-124.12267612,0.00019315,2]
[387703113,1758816298467,-867.52910796,0.00019315,2]
[387703114,1758816298478,-329.91089204,0.00019315,2]
[387703115,1758816302755,600.0,0.000197,20]
[387703116,1758816305555,-480.0,0.00019314,2]
[387703117,1758816305636,-300.0,0.00019314,2]
[387703118,1758816305719,-1200.0,0.00019314,2]
[387703119,1758816305803,-300.0,0.00019314,2]
[387703120,1758816305899,-300.0,0.00019314,2]
[387703121,1758816305981,-300.0,0.00019314,2]
[387703122,1758816306064,-300.0,0.00019314,2]
[387703123,1758816306146,-150.08910796,0.00019315,2]
[387703124,1758816306228,-480.0,0.00019315,2]
[387703125,1758816306418,-480.0,0.00019315,2]
[387703126,1758816306510,-480.0,0.00019315,2]
[387703127,1758816306593,-101.28467418,0.00019315,2]
[387703128,1758816307467,-257.26243572,0.00019315,2]
[387703132,1758816315480,-480.0,0.00019314,2]
[387703133,1758816315559,-701.8,0.00019315,2]
[387703134,1758816315645,-583.57433696,0.00019315,2]
[387703135,1758816315719,-480.0,0.00019315,2]
[387703136,1758816315792,-480.0,0.00019315,2]
[387703137,1758816315864,-480.0,0.00019315,2]
[387703138,1758816315937,-480.0,0.00019315,2]
[387703139,1758816316014,-480.0,0.00019315,2]
[387703140,1758816316090,-480.0,0.00019315,2]
[387703141,1758816316166,-95.21132608,0.00019315,2]
[387703142,1758816316527,-518.83867392,0.00019315,2]
[387703143,1758816317050,-518.83867392,0.00019315,2]
[387703144,1758816317112,-8962.33265216,0.00019315,2]
[387703146,1758816325522,-480.0,0.00019314,2]
[387703147,1758816325599,-480.0,0.00019314,2]
[387703148,1758816325673,-151.24028472,0.00019315,2]
[387703149,1758816325746,-480.0,0.00019315,2]
[387703150,1758816325821,-480.0,0.00019315,2]
[387703151,1758816325903,-480.0,0.00019315,2]
[387703152,1758816325982,-480.0,0.00019315,2]
[387703153,1758816326060,-480.0,0.00019315,2]
[387703154,1758816326134,-480.0,0.00019315,2]
[387703155,1758816326210,-480.0,0.00019315,2]
[387703156,1758816326283,-480.0,0.00019315,2]
[387703157,1758816327170,-97.52943056,0.00019315,2]
[387703160,1758816338743,600.0,0.00019701,20]
[387703161,1758816345685,-512.27,0.00019314,2]
[387703162,1758816345762,-382.47056944,0.00019315,2]
[387703163,1758816345835,-480.0,0.00019315,2]
[387703164,1758816345907,-480.0,0.00019315,2]
[387703165,1758816345984,-480.0,0.00019315,2]
[387703166,1758816346060,-480.0,0.00019315,2]
[387703167,1758816346135,-475.01826624,0.00019315,2]
[387703168,1758816346211,-480.0,0.00019315,2]
[387703169,1758816346285,-480.0,0.00019316,2]
[387703170,1758816346359,-480.0,0.00019316,2]
[387703171,1758816346433,-60.49232864,0.00019316,2]
[387703172,1758816347238,-419.50767136,0.00019315,2]
[387703173,1758816355589,-60.49232864,0.00019315,2]
[387703174,1758816355679,-1105.09,0.00019315,2]
[387703175,1758816355762,-480.0,0.00019315,2]
[387703176,1758816356032,-6708.84534272,0.00019315,2]
[387703177,1758816356128,-10000.01,0.00019315,2]
[387703178,1758816356192,-7927.02499628,0.00019315,2]
[387703179,1758816356202,-480.0,0.00019315,2]
[387703180,1758816356211,-480.0,0.00019315,2]
[387703181,1758816356221,-419.50767136,0.00019316,2]
[387703182,1758816356231,-480.0,0.00019316,2]
[387703183,1758816356240,-213.47733236,0.00019316,2]
[387703184,1758816376184,600.0,0.00019701,20]
[387703186,1758816385846,-480.0,0.00019315,2]
[387703187,1758816385922,-480.0,0.00019315,2]
[387703188,1758816385999,-603.86710765,0.00019315,2]
[387703189,1758816386078,-300.0,0.00019315,2]
[387703190,1758816386155,-480.0,0.00019315,2]
[387703191,1758816386238,-1152.53,0.00019315,2]
[387703192,1758816386316,-234.42950866,0.00019315,2]
[387703193,1758816386395,-480.0,0.00019315,2]
[387703194,1758816386471,-480.0,0.00019315,2]
[387703195,1758816386550,-138.35676738,0.00019315,2]
[387703196,1758816387395,-341.64323262,0.00019315,2]
[387703200,1758816411193,600.0,0.00019701,20]
[387703202,1758816415891,-480.0,0.00019314,2]
[387703203,1758816415970,-480.0,0.00019314,2]
[387703204,1758816416048,-480.0,0.00019315,2]
[387703205,1758816416124,-480.0,0.00019315,2]
[387703206,1758816416207,-2971.61,0.00019315,2]
[387703207,1758816416600,-216.79,0.00019315,2]
[387703209,1758816440893,-300.0,0.00019314,2]
[387703210,1758816440967,-480.0,0.00019314,2]
[387703211,1758816441044,-480.0,0.00019314,2]
[387703212,1758816441120,-480.0,0.00019314,2]
[387703213,1758816441198,-942.0,0.00019314,2]
[387703214,1758816441274,-263.21,0.00019315,2]
[387703215,1758816441348,-480.0,0.00019315,2]
[387703216,1758816441532,-480.0,0.00019315,2]
[387703217,1758816441618,-480.0,0.00019315,2]
[387703218,1758816441693,-480.0,0.00019315,2]
[387703219,1758816442446,-269.59,0.00019315,2]
[387703220,1758816447076,600.0,0.00019735,20]
[387703223,1758816471036,-595.30056296,0.00019314,2]
[387703224,1758816471114,-480.0,0.00019314,2]
[387703225,1758816471198,-676.01,0.00019314,2]
[387703226,1758816471282,-1289.79,0.00019314,2]
[387703227,1758816471360,-210.41,0.00019315,2]
[387703228,1758816471438,-480.0,0.00019315,2]
[387703229,1758816471520,-480.0,0.00019315,2]
[387703230,1758816471597,-480.0,0.00019315,2]
[387703231,1758816471673,-136.98887408,0.00019315,2]
[387703232,1758816472289,-343.01112592,0.00019315,2]
[387703233,1758816483169,600.0,0.000197,20]
[387703234,1758816498187,277.0,0.00027397,120]
[387703235,1758816503386,150.0,0.00023996,30]
[387703236,1758816506049,-480.0,0.00019314,2]
[387703237,1758816506133,-300.0,0.00019314,2]
[387703238,1758816506210,-480.0,0.00019314,2]
[387703239,1758816506288,-1162.03,0.00019315,2]
[387703240,1758816506363,-480.0,0.00019315,2]
[387703241,1758816506446,-522.61,0.00019315,2]
[387703242,1758816506522,-295.42441304,0.00019315,2]
[387703243,1758816506596,-480.0,0.00019315,2]
[387703244,1758816506670,-480.0,0.00019315,2]
[387703245,1758816506751,-159.88117392,0.00019315,2]
[387703246,1758816507420,-320.11882608,0.00019315,2]
[387703247,1758816516943,600.0,0.00019701,20]
[387703248,1758816526125,-1869.20281821,0.00019289,2]
[387703249,1758816526207,-6261.60436358,0.00019289,2]
[387703250,1758816535902,-480.0,0.00019314,2]
[387703251,1758816535981,-480.0,0.00019314,2]
[387703252,1758816536064,-480.0,0.00019314,2]
[387703253,1758816536145,-480.0,0.00019314,2]
[387703254,1758816536226,-311.85054134,0.00019315,2]
[387703255,1758816536306,-480.0,0.00019315,2]
[387703256,1758816536386,-480.0,0.00019315,2]
[387703257,1758816536464,-480.0,0.00019315,2]
[387703258,1758816536543,-480.0,0.00019315,2]
[387703259,1758816536624,-480.0,0.00019315,2]
[387703260,1758816536704,-256.30891732,0.00019315,2]
[387703261,1758816537430,-223.69108268,0.00019315,2]
[387703267,1758816552337,600.0,0.00019734,20]
[387703268,1758816566262,-480.0,0.00019314,2]
[387703269,1758816566329,-480.0,0.00019314,2]
[387703270,1758816566396,-480.0,0.00019314,2]
[387703271,1758816566463,-480.0,0.00019314,2]
[387703272,1758816566531,-480.0,0.00019314,2]
[387703273,1758816566602,-480.0,0.00019315,2]
[387703274,1758816566671,-480.0,0.00019315,2]
[387703275,1758816566740,-437.59142433,0.00019315,2]
[387703276,1758816566808,-480.0,0.00019315,2]
[387703277,1758816566878,-676.54715134,0.00019315,2]
[387703278,1758816567674,-91.73284866,0.00019315,2]
[387703279,1758816586337,600.0,0.00019701,20]
[387703280,1758816606377,-480.0,0.00019314,2]
[387703281,1758816606470,-480.0,0.00019314,2]
[387703282,1758816606558,-300.0,0.00019314,2]
[387703283,1758816606646,-300.0,0.00019314,2]
[387703284,1758816606735,-300.0,0.00019314,2]
[387703285,1758816606824,-300.0,0.00019314,2]
[387703286,1758816606909,-300.0,0.00019314,2]
[387703287,1758816606995,-917.02,0.00019315,2]
[387703288,1758816607076,-480.0,0.00019315,2]
[387703289,1758816607166,-482.11,0.00019315,2]
[387703290,1758816607262,-480.0,0.00019315,2]
[387703291,1758816608186,-361.75,0.00019315,2]
[387703292,1758816620250,600.0,0.000197,20]
[387703293,1758816626394,-1200.0,0.00019314,2]
[387703294,1758816626482,-480.0,0.00019314,2]
[387703295,1758816626572,-480.0,0.00019314,2]
[387703296,1758816626660,-118.25,0.00019315,2]
[387703297,1758816626743,-500.0,0.00019315,2]
[387703298,1758816626829,-480.0,0.00019315,2]
[387703299,1758816626918,-480.0,0.00019315,2]
[387703300,1758816626998,-480.0,0.00019315,2]
[387703301,1758816627079,-480.0,0.00019315,2]
[387703302,1758816627163,-128.49173376,0.00019315,2]
[387703303,1758816627853,-346.52653248,0.00019315,2]
[387703348,1758816632252,-258.69064536,0.00019315,2]
[387703350,1758816632264,-221.30935464,0.00019315,2]
[387703352,1758816632274,-480.0,0.00019315,2]
[387703354,1758816632284,-480.0,0.00019315,2]
[387703356,1758816632293,-480.0,0.00019315,2]
[387703358,1758816632303,-480.0,0.00019315,2]
[387703360,1758816632313,-1138.82,0.00019315,2]
[387703362,1758816632322,-266.52266764,0.00019316,2]
[387703363,1758816632331,-480.0,0.00019316,2]
[387703364,1758816632341,-480.0,0.00019316,2]
[387703365,1758816632351,-381.6,0.00019316,2]
[387703367,1758816632361,-480.0,0.00019316,2]
[387703369,1758816632371,-480.0,0.00019316,2]
[387703370,1758816632380,-498.1,0.00019316,2]
[387703372,1758816632390,-480.0,0.00019316,2]
[387703374,1758816632400,-480.0,0.00019316,2]
[387703376,1758816632410,-469.06,0.00019342,3]
[387703377,1758816632420,-500.0,0.00019348,2]
[387703379,1758816632429,-231.28142843,0.00019348,2]
[387703381,1758816632443,-268.71857157,0.00019348,2]
[387703383,1758816632452,-500.0,0.00019348,2]
[387703385,1758816632462,-500.0,0.00019348,2]
[387703387,1758816632471,-520.01572863,0.00019348,2]
[387703389,1758816632481,-500.0,0.00019348,2]
[387703391,1758816632491,-500.0,0.00019348,2]
[387703393,1758816632500,-312.75455875,0.00019348,2]
[387703394,1758816632510,-500.0,0.00019348,2]
[387703396,1758816632520,-500.0,0.00019348,2]
[387703397,1758816632530,-385.61114106,0.00019348,2]
[387703398,1758816632550,-114.38885894,0.00019348,2]
[387703399,1758816632561,-500.0,0.00019348,2]
[387703400,1758816632571,-500.0,0.00019348,2]
[387703401,1758816632581,-227.04192044,0.00019348,2]
[387703402,1758816632591,-500.0,0.00019348,2]
[387703403,1758816632600,-480.0,0.00019348,2]
[387703404,1758816632610,-500.0,0.00019348,2]
[387703405,1758816632711,-500.0,0.00019348,2]
[387703406,1758816632725,-357.52252872,0.00019348,2]
[387703407,1758816632734,-480.0,0.00019348,2]
[387703408,1758816632744,-500.0,0.00019348,2]
[387703409,1758816632754,-500.0,0.00019348,2]
[387703410,1758816632765,-202.59760991,0.00019348,2]
[387703411,1758816632775,-500.0,0.00019348,2]
[387703412,1758816632784,-500.0,0.00019348,2]
[387703413,1758816632795,-500.0,0.00019348,2]
[387703414,1758816632805,-300.0,0.00019348,2]
[387703415,1758816632815,-228.95435953,0.00019348,2]
[387703416,1758816632825,-500.0,0.00019348,2]
[387703417,1758816632834,-530.93,0.00019348,2]
[387703418,1758816632844,-500.0,0.00019348,2]
[387703419,1758816632854,-500.0,0.00019348,2]
[387703420,1758816632864,-500.0,0.00019348,2]
[387703421,1758816632874,-500.0,0.00019348,2]
[387703422,1758816632883,-372.5355048,0.00019348,2]
[387703423,1758816632893,-500.0,0.00019348,2]
[387703424,1758816632903,-496.93172807,0.00019348,2]
[387703425,1758816632913,-500.0,0.00019348,2]
[387703426,1758816632923,-500.0,0.00019348,2]
[387703427,1758816632933,-553.85124734,0.00019348,2]
[387703428,1758816632943,-277.10809963,0.00019348,2]
[387703429,1758816632952,-500.0,0.00019348,2]
[387703430,1758816632962,-338.23390109,0.00019348,2]
[387703492,1758816638279,-161.76609891,0.00019348,2]
[387703494,1758816638289,-428.29389583,0.00019348,2]
[387703496,1758816638299,-500.0,0.00019348,2]
[387703498,1758816638308,-500.0,0.00019348,2]
[387703499,1758816638317,-500.0,0.00019348,2]
[387703501,1758816638326,-539.59717299,0.00019348,2]
[387703503,1758816638336,-500.0,0.00019348,2]
[387703505,1758816638345,-500.0,0.00019348,2]
[387703507,1758816638354,-480.0,0.00019348,2]
[387703509,1758816638364,-480.0,0.00019348,2]
[387703511,1758816638373,-480.0,0.00019349,2]
[387703512,1758816638382,-480.0,0.00019349,2]
[387703514,1758816638391,-480.0,0.00019349,2]
[387703516,1758816638402,-237.47947786,0.00019349,2]
[387703518,1758816638411,-480.0,0.00019349,2]
[387703520,1758816638420,-480.0,0.00019349,2]
[387703522,1758816638430,-480.0,0.00019349,2]
[387703524,1758816638439,-480.0,0.00019349,2]
[387703525,1758816638448,-480.0,0.00019349,2]
[387703527,1758816638458,-232.98035473,0.00019349,2]
[387703529,1758816638467,-480.0,0.00019349,2]
[387703531,1758816638477,-480.0,0.00019349,2]
[387703533,1758816638486,-506.53731676,0.00019349,2]
[387703535,1758816638496,-500.0,0.00019349,2]
[387703537,1758816638505,-480.0,0.00019349,2]
[387703539,1758816638514,-480.0,0.00019349,2]
[387703541,1758816638524,-480.0,0.00019349,2]
[387703543,1758816638533,-480.0,0.00019349,2]
[387703545,1758816638543,-480.0,0.00019349,2]
[387703547,1758816638552,-480.0,0.00019349,2]
[387703549,1758816638561,-480.0,0.00019349,2]
[387703550,1758816638571,-480.0,0.00019349,2]
[387703552,1758816638580,-480.0,0.00019349,2]
[387703554,1758816638590,-480.0,0.00019349,2]
[387703556,1758816638599,-480.0,0.00019349,2]
[387703558,1758816638609,-480.0,0.00019349,2]
[387703560,1758816638620,-480.0,0.00019349,2]
[387703562,1758816638630,-483.21260983,0.00019349,2]
[387703564,1758816638640,-481.46548439,0.00019349,2]
[387703566,1758816638652,-480.0,0.00019349,2]
[387703569,1758816638665,-398.43238232,0.00019349,2]
[387703571,1758816638677,-480.0,0.00019349,2]
[387703573,1758816638690,-480.0,0.00019349,2]
[387703575,1758816638702,-482.73843162,0.00019349,2]
[387703577,1758816638715,-487.23544987,0.00019349,2]
[387703579,1758816638727,-480.0,0.00019349,2]
[387703582,1758816638740,-482.36592456,0.00019349,2]
[387703584,1758816638751,-480.0,0.00019349,2]
[387703586,1758816638763,-480.0,0.00019349,2]
[387703588,1758816638776,-480.0,0.00019349,2]
[387703590,1758816638788,-480.0,0.00019349,2]
[387703593,1758816638801,-480.0,0.00019349,2]
[387703595,1758816638813,-480.0,0.00019349,2]
[387703597,1758816638827,-480.0,0.00019349,2]
[387703599,1758816638839,-366.23888349,0.00019349,2]
[387703602,1758816638852,-480.0,0.00019349,2]
[387703604,1758816638864,-480.0,0.00019349,2]
[387703606,1758816638876,-480.0,0.00019349,2]
[387703608,1758816638891,-480.0,0.00019349,2]
[387703610,1758816638903,-480.0,0.00019349,2]
[387703612,1758816638915,-480.0,0.00019349,2]
[387703615,1758816638927,-480.0,0.00019349,2]
[387703617,1758816638940,-437.59142433,0.00019349,2]
[387703619,1758816638954,-480.0,0.00019349,2]
[387703622,1758816638965,-480.0,0.00019349,2]
[387703624,1758816638978,-480.0,0.00019349,2]
[387703626,1758816638989,-480.0,0.00019349,2]
[387703628,1758816638999,-480.0,0.00019349,2]
[387703630,1758816639011,-480.0,0.00019349,2]
[387703632,1758816639022,-519.66220478,0.00019349,2]
[387703634,1758816639033,-483.3046295,0.0001935,2]
[387703636,1758816639046,-480.0,0.0001935,2]
[387703638,1758816639058,-480.0,0.0001935,2]
[387703641,1758816639071,-480.0,0.0001935,2]
[387703643,1758816639083,-500.0,0.0001935,2]
[387703645,1758816639095,-500.0,0.00019351,2]
[387703647,1758816639108,-199.0,0.00019351,2]
[387703649,1758816639121,-500.0,0.00019351,2]
[387703652,1758816639134,-154.9922281,0.00019351,2]
[387703654,1758816639147,-500.0,0.00019351,2]
[387703656,1758816639157,-500.0,0.00019351,2]
[387703658,1758816639168,-500.0,0.00019351,2]
[387703659,1758816639178,-500.0,0.00019351,2]
[387703661,1758816639188,-500.0,0.00019351,2]
[387703663,1758816639200,-500.0,0.00019351,2]
[387703665,1758816639214,-500.0,0.00019351,2]
[387703667,1758816639226,-500.0,0.00019351,2]
[387703669,1758816639239,-500.0,0.00019351,2]
[387703670,1758816639249,-500.0,0.00019351,2]
[387703672,1758816639260,-500.0,0.00019351,2]
[387703674,1758816639271,-500.0,0.00019351,2]
[387703676,1758816639282,-500.0,0.00019351,2]
[387703677,1758816639295,-500.0,0.00019351,2]
[387703678,1758816639306,-500.0,0.00019351,2]
[387703679,1758816639317,-408.04682702,0.00019351,2]
[387703680,1758816639328,-500.0,0.00019351,2]
[387703681,1758816639338,-500.0,0.00019351,2]
[387703682,1758816639350,-500.0,0.00019351,2]
[387703683,1758816639362,-500.0,0.00019351,2]
[387703684,1758816639372,-500.0,0.00019351,2]
[387703685,1758816639383,-500.0,0.00019351,2]
[387703686,1758816639395,-500.0,0.00019351,2]
[387703687,1758816639408,-217.11303563,0.00019351,2]
[387703688,1758816639419,-500.0,0.00019351,2]
[387703689,1758816639430,-500.0,0.00019351,2]
[387703690,1758816639441,-500.0,0.00019351,2]
[387703692,1758816639452,-528.41453018,0.00019351,2]
[387703694,1758816639463,-500.0,0.00019351,2]
[387703696,1758816639474,-370000.0,0.00019352,2]
[387703697,1758816639485,-424.29372081,0.00019473,2]
[387703698,1758816639496,-500.0,0.00019573,2]
[387703699,1758816639507,-500.0,0.00019573,2]
[387703700,1758816639518,-500.0,0.00019573,2]
[387703701,1758816639530,-193.28053724,0.00019573,2]
[387703702,1758816639541,-480.0,0.00019588,2]
[387703703,1758816639551,-480.0,0.00019588,2]
[387703704,1758816639562,-480.0,0.00019588,2]
[387703705,1758816639574,-676.01,0.00019588,2]
[387703706,1758816639585,-1289.79,0.00019588,2]
[387703707,1758816639596,-480.0,0.00019588,2]
[387703708,1758816639607,-480.0,0.00019588,2]
[387703709,1758816639619,-480.0,0.00019588,2]
[387703710,1758816639630,-480.0,0.00019588,2]
[387703711,1758816639641,-480.0,0.00019588,2]
[387703712,1758816639653,-480.0,0.00019588,2]
[387703713,1758816639665,-480.0,0.00019588,2]
[387703714,1758816639676,-480.0,0.00019588,2]
[387703715,1758816639688,-480.0,0.00019588,2]
[387703716,1758816639699,-155.20798604,0.00019589,2]
[387703717,1758816639710,-480.0,0.00019589,2]
[387703718,1758816639726,-480.0,0.00019589,2]
[387703719,1758816639737,-480.0,0.00019589,2]
[387703720,1758816639748,-498.1372238,0.00019589,2]
[387703721,1758816639760,-480.0,0.00019589,2]
[387703722,1758816639773,-480.0,0.00019589,2]
[387703723,1758816639784,-480.0,0.00019589,2]
[387703724,1758816639796,-480.0,0.00019589,2]
[387703725,1758816639914,-1152.53,0.00019589,2]
[387703726,1758816639931,-2971.61,0.00019589,2]
[387703727,1758816639940,-480.0,0.00019589,2]
[387703728,1758816639950,-493.58,0.00019589,2]
[387703729,1758816639960,-480.0,0.00019589,2]
[387703730,1758816639970,-480.0,0.00019589,2]
[387703731,1758816639980,-1162.03,0.00019589,2]
[387703732,1758816639990,-522.61,0.00019589,2]